lending/lending_fUSD_20250303
["ID","MTS","AMOUNT","RATE_DAILY","PERIOD"]
[355229793,1741027844442,-500.0,0.00014767,2]
[355229794,1741027844451,-500.0,0.00014767,2]
[355229795,1741027844461,-500.0,0.00014767,2]
[355229796,1741027844470,-500.0,0.00014767,2]
[355229797,1741027844479,-500.0,0.00014767,2]
[355229798,1741027844491,-500.0,0.00014767,2]
[355229799,1741027844500,-500.0,0.00014767,2]
[355229800,1741027844509,-500.0,0.00014767,2]
[355229801,1741027844519,-502.83799176,0.00014767,2]
[355229802,1741027844528,-500.0,0.00014767,2]
[355229803,1741027844541,-500.0,0.00014767,2]
[355229804,1741027844551,-818.79,0.00014767,2]
[355229805,1741027844560,-500.0,0.00014767,2]
[355229806,1741027844569,-500.0,0.00014767,2]
[355229807,1741027844580,-330.77517699,0.00014767,2]
[355229808,1741027844589,-500.0,0.00014767,2]
[355229809,1741027844599,-500.0,0.00014767,2]
[355229810,1741027844609,-557.61131311,0.00014767,2]
[355229811,1741027844624,-621.94,0.00014767,2]
[355229812,1741027844635,-500.0,0.00014767,2]
[355229813,1741027844646,-500.0,0.00014767,2]
[355229814,1741027844657,-500.0,0.00014767,2]
[355229815,1741027844668,-500.0,0.00014767,2]
[355229816,1741027844678,-500.0,0.00014767,2]
[355229817,1741027844688,-500.0,0.00014767,2]
[355229818,1741027844698,-1078.19,0.00014767,2]
[355229819,1741027844709,-500.0,0.00014767,2]
[355229820,1741027844720,-983.92,0.00014767,2]
[355229821,1741027844729,-500.0,0.00014767,2]
[355229822,1741027844739,-500.0,0.00014767,2]
[355229823,1741027844749,-500.0,0.00014767,2]
[355229824,1741027844759,-500.0,0.00014767,2]
[355229825,1741027844768,-500.0,0.00014767,2]
[355229826,1741027844777,-500.0,0.00014767,2]
[355229827,1741027844787,-500.87929708,0.00014767,2]
[355229828,1741027844796,-500.0,0.00014767,2]
[355229829,1741027844805,-606.74,0.00014767,2]
[355229830,1741027844815,-500.0,0.00014767,2]
[355229831,1741027844826,-500.0,0.00014767,2]
[355229832,1741027844836,-501.83958704,0.00014767,2]
[355229833,1741027844845,-500.0,0.00014767,2]
[355229834,1741027844854,-1094.97,0.00014767,2]
[355229835,1741027844864,-779.73,0.00014767,2]
[355229836,1741027844878,-500.0,0.00014767,2]
[355229837,1741027844887,-500.0,0.00014767,2]
[355229838,1741027844897,-500.0,0.00014767,2]
[355229839,1741027844907,-500.0,0.00014767,2]
[355229840,1741027844916,-500.0,0.00014767,2]
[355229841,1741027844926,-500.0,0.00014767,2]
[355229842,1741027844936,-500.0,0.00014767,2]
[355229843,1741027844945,-500.0,0.00014767,2]
[355229844,1741027844955,-500.0,0.00014767,2]
[355229845,1741027844964,-852.59,0.00014767,2]
[355229846,1741027844974,-500.0,0.00014767,2]
[355229847,1741027844984,-500.0,0.00014767,2]
[355229848,1741027844994,-981.64,0.00014767,2]
[355229849,1741027845004,-500.0,0.00014767,2]
[355229850,1741027845014,-500.0,0.00014767,2]
[355229851,1741027845023,-500.0,0.00014767,2]
[355229852,1741027845033,-500.0,0.00014767,2]
[355229853,1741027845043,-500.0,0.00014767,2]
[355229854,1741027845052,-500.0,0.00014767,2]
[355229855,1741027845062,-500.0,0.00014767,2]
[355229856,1741027845071,-500.0,0.00014767,2]
[355229857,1741027845080,-615.16,0.00014767,2]
[355229858,1741027845090,-1267.36,0.00014767,2]
[355229859,1741027845099,-500.0,0.00014767,2]
[355229860,1741027845109,-500.0,0.00014767,2]
[355229861,1741027845121,-500.0,0.00014767,2]
[355229862,1741027845130,-500.0,0.00014767,2]
[355229863,1741027845140,-500.0,0.00014767,2]
[355229864,1741027845150,-501.15017159,0.00014767,2]
[355229865,1741027845159,-1034.27,0.00014767,2]
[355229866,1741027845168,-636.8,0.00014767,2]
[355229867,1741027845178,-500.0,0.00014767,2]
[355229868,1741027845187,-500.0,0.00014767,2]
[355229869,1741027845197,-501.20933772,0.00014767,2]
[355229870,1741027845207,-628.94,0.00014767,2]
[355229871,1741027845216,-500.0,0.00014767,2]
[355229872,1741027845225,-500.0,0.00014767,2]
[355229873,1741027845235,-500.0,0.00014767,2]
[355229874,1741027845244,-500.0,0.00014767,2]
[355229875,1741027845253,-500.0,0.00014767,2]
[355229876,1741027845262,-527.87708637,0.00014767,2]
[355229877,1741027845272,-601.5,0.00014767,2]
[355229878,1741027845281,-1271.14,0.00014767,2]
[355229879,1741027845290,-523.05273515,0.00014767,2]
[355229880,1741027845300,-558.11,0.00014767,2]
[355229881,1741027845310,-500.0,0.00014767,2]
[355229882,1741027845319,-500.0,0.00014767,2]
[355229883,1741027845328,-504.44085702,0.00014767,2]
[355229884,1741027845337,-492.46755087,0.00014767,2]
[355229885,1741027845347,-500.0,0.00014767,2]
[355229886,1741027845356,-1647.97,0.00014767,2]
[355229887,1741027845366,-500.0,0.00014767,2]
[355229888,1741027845379,-255.94629301,0.00014767,2]
[355229889,1741027845388,-500.0,0.00014767,2]
[355229890,1741027845397,-279.14124945,0.00014767,2]
[355229891,1741027845407,-908.82,0.00014767,2]
[355229892,1741027845416,-500.0,0.00014767,2]
[355229893,1741027845425,-501.34257018,0.00014767,2]
[355229894,1741027845435,-500.0,0.00014767,2]
[355229895,1741027845443,-500.0,0.00014767,2]
[355229896,1741027845453,-1372.05,0.00014767,2]
[355229897,1741027845462,-500.0,0.00014767,2]
[355229898,1741027845471,-500.0,0.00014767,2]
[355229899,1741027845480,-500.0,0.00014767,2]
[355229900,1741027845493,-506.63010741,0.00014767,2]
[355229901,1741027845502,-500.0,0.00014767,2]
[355229902,1741027845512,-500.0,0.00014767,2]
[355229903,1741027845521,-500.0,0.00014767,2]
[355229904,1741027845532,-505.43,0.00014767,2]
[355229905,1741027845541,-511.86387147,0.00014767,2]
[355229906,1741027845550,-500.0,0.00014767,2]
[355229907,1741027845560,-500.0,0.00014767,2]
[355229908,1741027845570,-500.0,0.00014767,2]
[355229909,1741027845580,-1128.58,0.00014767,2]
[355229910,1741027845589,-500.0,0.00014767,2]
[355229911,1741027845599,-501.82886592,0.00014767,2]
[355229912,1741027845608,-500.0,0.00014767,2]
[355229913,1741027845619,-500.0,0.00014767,2]
[355229914,1741027845629,-500.0,0.00014767,2]
[355229915,1741027845639,-500.0,0.00014767,2]
[355229916,1741027845648,-500.0,0.00014767,2]
[355229917,1741027845658,-500.0,0.00014767,2]
[355229918,1741027845668,-1470.24,0.00014767,2]
[355229919,1741027845678,-595.67,0.00014767,2]
[355229920,1741027845688,-510.90654863,0.00014767,2]
[355229921,1741027845698,-500.0,0.00014767,2]
[355229922,1741027845707,-1277.66,0.00014767,2]
[355229923,1741027845717,-500.0,0.00014767,2]
[355229924,1741027845726,-500.0,0.00014767,2]
[355229925,1741027845736,-500.0,0.00014767,2]
[355229926,1741027845745,-849.46,0.00014767,2]
[355229927,1741027845754,-605.66900272,0.00014767,2]
[355229928,1741027845764,-500.05105227,0.00014767,2]
[355229929,1741027845773,-1389.87,0.00014767,2]
[355229930,1741027845783,-503.63794452,0.00014767,2]
[355229931,1741027845792,-500.0,0.00014767,2]
[355229932,1741027845802,-500.0,0.00014767,2]
[355229934,1741027845811,-500.0,0.00014767,2]
[355229935,1741027845821,-791.0,0.00014767,2]
[355229936,1741027845831,-500.0,0.00014767,2]
[355229937,1741027845840,-500.0,0.00014767,2]
[355229938,1741027845849,-504.05,0.00014767,2]
[355229939,1741027845859,-711.23,0.00014767,2]
[355229940,1741027845872,-500.0,0.00014767,2]
[355229941,1741027845881,-500.0,0.00014767,2]
[355229942,1741027845892,-500.0,0.00014767,2]
[355229943,1741027845901,-1474.92,0.00014767,2]
[355229944,1741027845911,-500.0,0.00014767,2]
[355229945,1741027845921,-500.0,0.00014767,2]
[355229946,1741027845931,-850.75,0.00014767,2]
[355229947,1741027845941,-500.0,0.00014767,2]
[355229948,1741027845951,-500.0,0.00014767,2]
[355229949,1741027845960,-1150.5,0.00014767,2]
[355229950,1741027845970,-500.0,0.00014767,2]
[355229951,1741027845980,-1249.31,0.00014767,2]
[355229952,1741027845989,-403.6817409,0.00014767,2]
[355229953,1741027845999,-500.0,0.00014767,2]
[355229954,1741027846009,-500.0,0.00014767,2]
[355229955,1741027846019,-500.0,0.00014767,2]
[355229956,1741027846029,-500.0,0.00014767,2]
[355229957,1741027846039,-639.49,0.00014767,2]
[355229958,1741027846049,-500.0,0.00014767,2]
[355229959,1741027846059,-500.0,0.00014767,2]
[355229960,1741027846068,-500.0,0.00014767,2]
[355229961,1741027846078,-500.0,0.00014767,2]
[355229962,1741027846088,-500.0,0.00014767,2]
[355229963,1741027846097,-500.0,0.00014767,2]
[355229964,1741027846107,-698.59,0.00014767,2]
[355229965,1741027846116,-515.66934798,0.00014767,2]
[355229966,1741027846131,-500.0,0.00014767,2]
[355229967,1741027846141,-521.39,0.00014767,2]
[355229968,1741027846151,-500.0,0.00014767,2]
[355229969,1741027846160,-500.0,0.00014767,2]
[355229970,1741027846170,-500.0,0.00014767,2]
[355229971,1741027846180,-500.0,0.00014767,2]
[355229972,1741027846191,-701.12,0.00014767,2]
[355229973,1741027846200,-500.0,0.00014767,2]
[355229974,1741027846211,-500.0,0.00014767,2]
[355229975,1741027846221,-500.0,0.00014767,2]
[355229977,1741027846231,-500.0,0.00014767,2]
[355229979,1741027846240,-500.0,0.00014767,2]
[355229981,1741027846249,-1225.1,0.00014767,2]
[355229991,1741027846414,-1272.47,0.00014767,2]
[355229992,1741027846425,-500.0,0.00014767,2]
[355229993,1741027846435,-500.0,0.00014767,2]
[355229994,1741027846444,-500.0,0.00014767,2]
[355229995,1741027846453,-500.0,0.00014767,2]
[355229997,1741027846463,-500.0,0.00014767,2]
[355229998,1741027846472,-599.17,0.00014767,2]
[355229999,1741027846481,-500.0,0.00014767,2]
[355230000,1741027846493,-957.11,0.00014767,2]
[355230001,1741027846503,-500.0,0.00014767,2]
[355230002,1741027846512,-1067.99,0.00014767,2]
[355230003,1741027846522,-5000.0,0.00014767,2]
[355230004,1741027846534,-500.0,0.00014767,2]
[355230005,1741027846546,-942.9,0.00014767,2]
[355230006,1741027846556,-500.0,0.00014767,2]
[355230007,1741027846566,-500.0,0.00014767,2]
[355230008,1741027846576,-771.52,0.00014767,2]
[355230009,1741027846586,-500.0,0.00014767,2]
[355230010,1741027846596,-613.95,0.00014767,2]
[355230011,1741027846606,-1752.79,0.00014767,2]
[355230012,1741027846617,-500.31070177,0.00014767,2]
[355230013,1741027846633,-500.0,0.00014767,2]
[355230014,1741027846643,-500.0,0.00014767,2]
[355230015,1741027846654,-1159.06,0.00014767,2]
[355230016,1741027846663,-500.0,0.00014767,2]
[355230017,1741027846673,-500.0,0.00014767,2]
[355230018,1741027846684,-789.11,0.00014767,2]
[355230019,1741027846694,-500.0,0.00014767,2]
[355230020,1741027846704,-500.0,0.00014767,2]
[355230021,1741027846714,-500.0,0.00014767,2]
[355230022,1741027846724,-500.0,0.00014767,2]
[355230023,1741027846734,-500.0,0.00014767,2]
[355230024,1741027846743,-500.0,0.00014767,2]
[355230025,1741027846753,-500.0,0.00014767,2]
[355230026,1741027846762,-1280.16,0.00014767,2]
[355230027,1741027846771,-1786.87,0.00014767,2]
[355230028,1741027846780,-500.0,0.00014767,2]
[355230029,1741027846789,-500.0,0.00014767,2]
[355230030,1741027846799,-500.0,0.00014767,2]
[355230031,1741027846808,-568.2,0.00014767,2]
[355230032,1741027846817,-370.89607988,0.00014767,2]
[355230034,1741027846826,-1449.5,0.00014767,2]
[355230035,1741027846835,-500.0,0.00014767,2]
[355230036,1741027846844,-1608.11,0.00014767,2]
[355230037,1741027846853,-500.0,0.00014767,2]
[355230038,1741027846863,-501.28483582,0.00014767,2]
[355230039,1741027846879,-500.0,0.00014767,2]
[355230040,1741027846890,-507.73,0.00014767,2]
[355230041,1741027846899,-500.0,0.00014767,2]
[355230042,1741027846908,-500.0,0.00014767,2]
[355230044,1741027846917,-1265.2,0.00014767,2]
[355230046,1741027846926,-1148.8,0.00014767,2]
[355230048,1741027846936,-944.35,0.00014767,2]
[355230050,1741027846946,-628.82,0.00014767,2]
[355230052,1741027846955,-597.84260348,0.00014767,2]
[355230054,1741027846965,-702.57,0.00014767,2]
[355230056,1741027846975,-500.0,0.00014767,2]
[355230058,1741027846985,-504.24698468,0.00014767,2]
[355230060,1741027846996,-500.0,0.00014767,2]
[355230062,1741027847006,-500.0,0.00014767,2]
[355230064,1741027847016,-500.0,0.00014767,7]
[355230066,1741027847025,-500.0,0.00014767,2]
[355230068,1741027847035,-500.0,0.00014767,2]
[355230070,1741027847044,-1003.32,0.00014767,2]
[355230072,1741027847054,-500.0,0.00014767,2]
[355230074,1741027847064,-637.0,0.00014767,2]
[355230076,1741027847074,-1042.42,0.00014767,2]
[355230078,1741027847084,-515.57326221,0.00014767,2]
[355230080,1741027847094,-500.0,0.00014767,2]
[355230082,1741027847104,-500.0,0.00014767,2]
[355230084,1741027847114,-734.03,0.00014767,2]
[355230086,1741027847128,-532.77,0.00014767,2]
[355230088,1741027847139,-501.3250722,0.00014767,2]
[355230090,1741027847148,-516.21586713,0.00014767,2]
[355230092,1741027847158,-1226.91,0.00014767,2]
[355230094,1741027847168,-835.05,0.00014767,2]
[355230097,1741027847178,-4080.75,0.00014767,2]
[355230099,1741027847188,-500.0,0.00014767,2]
[355230100,1741027847198,-500.0,0.00014767,2]
[355230103,1741027847209,-500.0,0.00014767,2]
[355230105,1741027847219,-518.6192022,0.00014767,2]
[355230107,1741027847228,-527.31,0.00014767,2]
[355230108,1741027847238,-500.0,0.00014767,2]
[355230110,1741027847248,-500.0,0.00014767,2]
[355230112,1741027847257,-500.0,0.00014767,2]
[355230114,1741027847267,-500.0,0.00014767,2]
[355230116,1741027847276,-500.0,0.00014767,2]
[355230118,1741027847286,-500.0,0.00014767,2]
[355230120,1741027847296,-1296.09,0.00014767,2]
[355230123,1741027847306,-500.0,0.00014767,2]
[355230125,1741027847316,-540.47,0.00014767,2]
[355230127,1741027847325,-500.0,0.00014767,2]
[355230129,1741027847335,-500.0,0.00014767,2]
[355230130,1741027847344,-500.0,0.00014767,2]
[355230133,1741027847354,-500.0,0.00014767,2]
[355230135,1741027847364,-555.23,0.00014767,2]
[355230137,1741027847378,-616.54,0.00014767,2]
[355230140,1741027847395,-500.0,0.00014767,2]
[355230142,1741027847416,-500.0,0.00014767,2]
[355230145,1741027847437,-1055.9,0.00014767,2]
[355230149,1741027847457,-500.0,0.00014767,2]
[355230151,1741027847473,-720.61,0.00014767,2]
[355230154,1741027847492,-500.0,0.00014767,2]
[355230157,1741027847516,-500.0,0.00014767,2]
[355230160,1741027847537,-500.0,0.00014767,2]
[355230163,1741027847558,-1001.45,0.00014767,2]
[355230165,1741027847577,-500.0,0.00014767,2]
[355230168,1741027847596,-940.71,0.00014767,2]
[355230171,1741027847611,-500.0,0.00014767,2]
[355230174,1741027847635,-500.0,0.00014767,2]
[355230176,1741027847648,-500.0,0.00014767,2]
[355230179,1741027847666,-500.0,0.00014767,2]
[355230182,1741027847685,-525.96965732,0.00014767,2]
[355230184,1741027847701,-500.0,0.00014767,2]
[355230187,1741027847718,-557.07,0.00014767,2]
[355230188,1741027847736,-1331.8,0.00014767,2]
[355230189,1741027847753,-816.75,0.00014767,2]
[355230190,1741027847771,-1601.8,0.00014767,2]
[355230191,1741027847788,-500.0,0.00014767,2]
[355230192,1741027847809,-500.0,0.00014767,2]
[355230193,1741027847824,-500.0,0.00014767,2]
[355230194,1741027847841,-1535.08,0.00014767,2]
[355230195,1741027847857,-523.52511215,0.00014767,2]
[355230197,1741027847875,-500.0,0.00014767,2]
[355230199,1741027847892,-500.0,0.00014767,2]
[355230200,1741027847909,-500.0,0.00014767,2]
[355230201,1741027847925,-500.0,0.00014767,2]
[355230203,1741027847941,-500.0,0.00014767,2]
[355230206,1741027847958,-500.0,0.00014767,2]
[355230209,1741027847975,-500.0,0.00014767,2]
[355230211,1741027847992,-535.76,0.00014767,2]
[355230214,1741027848010,-500.0,0.00014767,2]
[355230217,1741027848027,-1843.36,0.00014767,2]
[355230220,1741027848044,-500.0,0.00014767,2]
[355230222,1741027848061,-500.0,0.00014767,2]
[355230225,1741027848078,-500.0,0.00014767,2]
[355230228,1741027848096,-500.0,0.00014767,2]
[355230230,1741027848112,-698.8,0.00014767,2]
[355230233,1741027848136,-500.0,0.00014767,2]
[355230236,1741027848153,-500.0,0.00014767,2]
[355230239,1741027848172,-500.0,0.00014767,2]
[355230242,1741027848190,-500.0,0.00014767,2]
[355230244,1741027848208,-500.0,0.00014767,2]
[355230247,1741027848227,-2348.49,0.00014767,2]
[355230250,1741027848243,-500.0,0.00014767,2]
[355230253,1741027848261,-500.0,0.00014767,2]
[355230255,1741027848279,-500.0,0.00014767,2]
[355230258,1741027848296,-500.0,0.00014767,2]
[355230261,1741027848314,-500.0,0.00014767,2]
[355230263,1741027848332,-500.0,0.00014767,2]
[355230266,1741027848354,-923.5,0.00014767,2]
[355230269,1741027848378,-742.78,0.00014767,2]
[355230271,1741027848397,-500.0,0.00014767,2]
[355230274,1741027848416,-920.87,0.00014767,2]
[355230277,1741027848435,-639.5,0.00014767,2]
[355230280,1741027848454,-500.0,0.00014767,2]
[355230282,1741027848473,-971.8,0.00014767,2]
[355230285,1741027848493,-500.0,0.00014767,2]
[355230287,1741027848512,-500.0,0.00014767,2]
[355230290,1741027848530,-4847.0,0.00014767,2]
[355230292,1741027848549,-12380.0,0.00014767,2]
[355230295,1741027848567,-505.15673492,0.00014768,2]
[355230298,1741027848584,-260.54931711,0.00014768,2]
[355230300,1741027848602,-500.0,0.00014768,2]
[355230303,1741027848626,-500.0,0.00014768,2]
[355230305,1741027848644,-500.0,0.00014768,2]
[355230308,1741027848665,-760.99,0.00014768,2]
[355230311,1741027848681,-796.15,0.00014768,2]
[355230314,1741027848698,-1314.17,0.00014768,2]
[355230317,1741027848719,-977.47,0.00014768,2]
[355230319,1741027848736,-817.88,0.00014768,2]
[355230322,1741027848753,-500.0,0.00014768,2]
[355230325,1741027848770,-1211.5,0.00014768,2]
[355230328,1741027848787,-1350.02,0.00014768,2]
[355230330,1741027848804,-831.55,0.00014768,2]
[355230333,1741027848821,-500.0,0.00014768,2]
[355230336,1741027848836,-1128.88,0.00014768,2]
[355230338,1741027848852,-500.0,0.00014768,2]
[355230341,1741027848867,-1584.34,0.00014768,2]
[355230343,1741027848886,-791.22,0.00014768,2]
[355230346,1741027848900,-1653.54,0.00014768,2]
[355230348,1741027848910,-1462.09,0.00014768,2]
[355230350,1741027848920,-500.0,0.00014768,2]
[355230352,1741027848930,-1539.82,0.00014768,2]
[355230354,1741027848940,-53.30233514,0.00014768,2]
[355230370,1741027849762,-725.91676573,0.00014768,2]
[355230371,1741027849784,-313.67089913,0.00014768,2]
[355230372,1741027849795,-724.84,0.00014768,2]
[355230373,1741027849804,-823.48,0.00014768,2]
[355230374,1741027849813,-627.1,0.00014768,2]
[355230375,1741027849822,-1492.82,0.00014768,2]
[355230376,1741027849832,-1225.84,0.00014768,2]
[355230377,1741027849841,-69.02943022,0.00014768,2]
[355230378,1741027849868,-500.0,0.00014767,2]
[355230379,1741027849879,-144.4587121,0.00014768,2]
[355230380,1741027849890,-1423.47185768,0.00014768,2]
[355230381,1741027849900,-590.12,0.00014768,2]
[355230382,1741027849909,-1122.87,0.00014768,2]
[355230383,1741027849919,-699.33,0.00014768,2]
[355230384,1741027849928,-851.44,0.00014768,2]
[355230385,1741027849938,-300.18577528,0.00014768,2]
[355230386,1741027849947,-1233.89,0.00014768,2]
[355230387,1741027849956,-355.49719138,0.00014768,2]
[355230388,1741027849978,-254.41280862,0.00014768,2]
[355230389,1741027849988,-1275.01,0.00014768,2]
[355230390,1741027849998,-500.0,0.00014768,2]
[355230391,1741027850008,-500.0,0.00014768,2]
[355230392,1741027850018,-698.84,0.00014768,2]
[355230393,1741027850028,-500.0,0.00014768,2]
[355230394,1741027850038,-171.864,0.00014768,2]
[355230395,1741027850048,-171.864,0.00014768,2]
[355230396,1741027850058,-500.0,0.00014769,2]
[355230397,1741027850067,-1053.55,0.00014769,2]
[355230398,1741027850076,-500.0,0.00014769,2]
[355230399,1741027850086,-500.0,0.00014769,2]
[355230400,1741027850096,-661.47,0.00014769,2]
[355230401,1741027850105,-500.0,0.00014769,2]
[355230402,1741027850115,-500.0,0.00014769,2]
[355230403,1741027850132,-500.0,0.00014769,2]
[355230404,1741027850142,-500.0,0.00014769,2]
[355230405,1741027850152,-500.0,0.00014769,2]
[355230406,1741027850162,-500.0,0.00014769,2]
[355230407,1741027850171,-500.0,0.00014769,2]
[355230408,1741027850181,-500.0,0.00014769,2]
[355230409,1741027850191,-500.0,0.00014769,2]
[355230410,1741027850201,-500.0,0.00014769,2]
[355230411,1741027850210,-500.0,0.00014769,2]
[355230412,1741027850220,-500.0,0.00014769,2]
[355230413,1741027850229,-500.0,0.00014769,2]
[355230414,1741027850239,-500.0,0.00014769,2]
[355230415,1741027850249,-500.0,0.00014769,2]
[355230416,1741027850259,-500.0,0.00014769,2]
[355230417,1741027850268,-629.99,0.00014769,2]
[355230418,1741027850278,-500.0,0.00014769,2]
[355230419,1741027850288,-500.0,0.00014769,2]
[355230420,1741027850298,-500.0,0.00014769,2]
[355230421,1741027850307,-500.0,0.00014769,2]
[355230422,1741027850317,-500.0,0.00014769,2]
[355230423,1741027850326,-503.18,0.00014769,2]
[355230424,1741027850336,-500.0,0.00014769,2]
[355230425,1741027850346,-500.0,0.00014769,2]
[355230426,1741027850355,-500.0,0.00014769,2]
[355230427,1741027850364,-546.80958856,0.00014769,2]
[355230428,1741027850376,-500.0,0.00014769,2]
[355230429,1741027850385,-500.0,0.00014769,2]
[355230430,1741027850394,-500.0,0.00014769,2]
[355230431,1741027850403,-527.8,0.00014769,2]
[355230432,1741027850412,-500.0,0.00014769,2]
[355230433,1741027850422,-500.0,0.00014769,2]
[355230434,1741027850431,-500.0,0.00014769,2]
[355230435,1741027850440,-500.0,0.00014769,2]
[355230436,1741027850449,-500.0,0.00014769,2]
[355230437,1741027850459,-500.0,0.00014769,2]
[355230438,1741027850468,-500.0,0.00014769,2]
[355230439,1741027850477,-500.0,0.00014769,2]
[355230440,1741027850486,-500.0,0.00014769,2]
[355230441,1741027850498,-500.0,0.00014769,2]
[355230442,1741027850507,-500.0,0.00014769,2]
[355230443,1741027850516,-658.83,0.00014769,2]
[355230444,1741027850526,-500.0,0.00014769,2]
[355230445,1741027850539,-500.0,0.00014769,2]
[355230446,1741027850548,-500.0,0.00014769,2]
[355230447,1741027850557,-504.33895813,0.00014769,2]
[355230448,1741027850567,-500.0,0.00014769,2]
[355230449,1741027850576,-500.0,0.00014769,2]
[355230450,1741027850585,-500.0,0.00014769,2]
[355230451,1741027850595,-500.0,0.00014769,2]
[355230452,1741027850605,-500.0,0.00014769,2]
[355230453,1741027850614,-884.85,0.00014769,2]
[355230454,1741027850629,-500.0,0.00014769,2]
[355230455,1741027850638,-500.0,0.00014769,2]
[355230456,1741027850648,-500.0,0.00014769,2]
[355230457,1741027850658,-500.0,0.00014769,2]
[355230458,1741027850667,-500.0,0.00014769,2]
[355230459,1741027850676,-500.0,0.00014769,2]
[355230460,1741027850685,-500.0,0.00014769,2]
[355230461,1741027850694,-500.0,0.00014769,2]
[355230462,1741027850704,-500.0,0.00014769,2]
[355230463,1741027850713,-500.0,0.00014769,2]
[355230464,1741027850723,-500.0,0.00014769,2]
[355230465,1741027850733,-500.0,0.00014769,2]
[355230466,1741027850742,-823.6,0.00014769,2]
[355230467,1741027850751,-500.0,0.00014769,2]
[355230468,1741027850761,-500.0,0.00014769,2]
[355230469,1741027850770,-500.0,0.00014769,2]
[355230470,1741027850779,-500.0,0.00014769,2]
[355230471,1741027850788,-403.24597321,0.00014769,2]
[355230472,1741027850800,-96.75402679,0.00014769,2]
[355230473,1741027850809,-500.0,0.00014769,2]
[355230474,1741027850818,-1596.92297322,0.00014771,2]
[355230475,1741027850829,-2187.7,0.00014771,2]
[355230476,1741027852158,-439.439,0.00014566,2]
[355230477,1741027852179,-993.4244,0.00014566,2]
[355230478,1741027852188,-808.3756,0.00014699,2]
[355230479,1741027852200,-444.24672001,0.00014699,2]
[355230480,1741027852220,-517.28767999,0.00014699,2]
[355230481,1741027852230,-500.0,0.00014699,2]
[355230482,1741027852240,-1522.81781794,0.00014766,2]
[355230483,1741027852251,-756.94686251,0.00014766,2]
[355230484,1741027852263,-269.89991522,0.00014766,2]
[355230485,1741027852275,-1220.1999994,0.00014766,2]
[355230486,1741027852292,-500.0,0.00014699,2]
[355230487,1741027852303,-14256.83540493,0.00014766,2]
[355230488,1741027852312,-500.0,0.00014767,2]
[355230489,1741027852321,-3201.73305984,0.00014771,2]
[355230490,1741027852333,-1883.07965177,0.00014771,2]
[355230491,1741027852342,-593.28925126,0.00014772,2]
[355230492,1741027852351,-160.06315705,0.00014773,2]
[355230493,1741027852361,-160.22222262,0.00014773,2]
[355230494,1741027852375,-160.2206911,0.00014773,2]
[355230495,1741027852385,-197.38349905,0.00014773,2]
[355230496,1741027852395,-160.22225983,0.00014773,2]
[355230497,1741027852405,-501.11317831,0.00014773,2]
[355230498,1741027852414,-410.34598789,0.00014773,2]
[355230499,1741027852424,-500.0,0.00014773,2]